[Event "December 19 Early 2023"]
[Site "https://www.chess.com"]
[Date "2023.12.19"]
[Round "1"]
[White "Senft, Sean"]
[Black "Sjugirov, Sanan"]
[Result "1-0"]
[Board "42"]
[TimeControl "180+1"]
[WhiteFideId "2044960"]
[BlackFideId "4189302"]
[WhiteElo "2005"]
[BlackElo "2569"]
[WhiteTeam "USA"]
[BlackTeam "HUN"]
[WhiteClock "0:00:31"]
[BlackClock "0:00:00"]

1. d4 {[%clk 0:03:00]}  Nf6 {[%clk 0:02:59]} 2. c4 {[%clk 0:03:01]}  e6 {[%clk 0:02:59]} 3. Nc3 {[%clk 0:03:01]}  Bb4 {[%clk 0:02:59]} 4. Nf3 {[%clk 0:02:59]}  b6 {[%clk 0:02:58]} 5. Bg5 {[%clk 0:03:00]}  h6 {[%clk 0:02:58]} 6. Bh4 {[%clk 0:03:00]}  g5 {[%clk 0:02:57]} 7. Bg3 {[%clk 0:03:00]}  Ne4 {[%clk 0:02:58]} 8. Qc2 {[%clk 0:03:00]}  Bb7 {[%clk 0:02:58]} 9. e3 {[%clk 0:03:01]}  Bxc3+ {[%clk 0:02:57]} 10. bxc3 {[%clk 0:03:01]}  d6 {[%clk 0:02:56]} 11. Bd3 {[%clk 0:03:01]}  Nxg3 {[%clk 0:02:56]} 12. hxg3 {[%clk 0:03:01]}  Nd7 {[%clk 0:02:56]} 13. Be4 {[%clk 0:02:55]}  c6 {[%clk 0:02:54]} 14. a4 {[%clk 0:02:55]}  d5 {[%clk 0:02:36]} 15. Bd3 {[%clk 0:02:51]}  a5 {[%clk 0:02:17]} 16. Rb1 {[%clk 0:02:49]}  Rb8 {[%clk 0:02:02]} 17. Qe2 {[%clk 0:02:47]}  g4 {[%clk 0:01:34]} 18. Nh2 {[%clk 0:02:28]}  f5 {[%clk 0:01:29]} 19. Nf1 {[%clk 0:02:17]}  Nf6 {[%clk 0:01:26]} 20. Nd2 {[%clk 0:02:16]}  Kf7 {[%clk 0:01:24]} 21. f3 {[%clk 0:02:10]}  c5 {[%clk 0:01:14]} 22. cxd5 {[%clk 0:01:59]}  Nxd5 {[%clk 0:01:13]} 23. Rc1 {[%clk 0:01:53]}  gxf3 {[%clk 0:01:06]} 24. Nxf3 {[%clk 0:01:47]}  Nf6 {[%clk 0:01:04]} 25. Ne5+ {[%clk 0:01:45]}  Kg7 {[%clk 0:01:02]} 26. g4 {[%clk 0:01:43]}  Ne4 {[%clk 0:00:49]} 27. Bxe4 {[%clk 0:01:39]}  Bxe4 {[%clk 0:00:49]} 28. gxf5 {[%clk 0:01:37]}  exf5 {[%clk 0:00:48]} 29. Qf2 {[%clk 0:01:23]}  Qg5 {[%clk 0:00:44]} 30. Rh3 {[%clk 0:01:22]}  Qf6 {[%clk 0:00:22]} 31. Rg3+ {[%clk 0:01:19]}  Kh7 {[%clk 0:00:22]} 32. Rg6 {[%clk 0:01:05]}  Qxg6 {[%clk 0:00:09]} 33. Nxg6 {[%clk 0:01:05]}  Kxg6 {[%clk 0:00:10]} 34. Qg3+ {[%clk 0:01:05]}  Kf7 {[%clk 0:00:09]} 35. Qc7+ {[%clk 0:01:04]}  Kg6 {[%clk 0:00:08]} 36. Qd6+ {[%clk 0:01:02]}  Kg5 {[%clk 0:00:06]} 37. Kf2 {[%clk 0:00:54]}  h5 {[%clk 0:00:02]} 38. Rh1 {[%clk 0:00:49]}  h4 {[%clk 0:00:03]} 39. Qf4+ {[%clk 0:00:50]}  Kg6 {[%clk 0:00:03]} 40. Rxh4 {[%clk 0:00:30]}  Rxh4 {[%clk 0:00:04]} 41. Qxh4 {[%clk 0:00:31]}  cxd4 {[%clk 0:00:00]} 42. Qg3+ {[%clk 0:00:31]} 1-0

[Event "December 19 Early 2023"]
[Site "https://www.chess.com"]
[Date "2023.12.19"]
[Round "1"]
[White "Cervantes Landeiro, Thalia"]
[Black "Rasulov, Vugar"]
[Result "0-1"]
[Board "46"]
[TimeControl "180+1"]
[WhiteFideId "3520498"]
[BlackFideId "13402390"]
[WhiteElo "2189"]
[BlackElo "2517"]
[WhiteTeam "USA"]
[BlackTeam "AZE"]
[WhiteClock "0:00:42"]
[BlackClock "0:01:57"]

1. d4 {[%clk 0:03:00]}  Nf6 {[%clk 0:02:59]} 2. c4 {[%clk 0:03:01]}  e6 {[%clk 0:02:59]} 3. Nf3 {[%clk 0:03:00]}  c5 {[%clk 0:02:58]} 4. d5 {[%clk 0:02:59]}  exd5 {[%clk 0:02:59]} 5. cxd5 {[%clk 0:03:00]}  d6 {[%clk 0:03:00]} 6. Nc3 {[%clk 0:03:00]}  g6 {[%clk 0:03:00]} 7. Nd2 {[%clk 0:03:00]}  Bg7 {[%clk 0:03:00]} 8. e4 {[%clk 0:03:00]}  O-O {[%clk 0:03:00]} 9. Be2 {[%clk 0:03:00]}  Na6 {[%clk 0:03:00]} 10. O-O {[%clk 0:03:00]}  Nc7 {[%clk 0:03:01]} 11. a4 {[%clk 0:02:59]}  a6 {[%clk 0:02:56]} 12. Qc2 {[%clk 0:02:58]}  Rb8 {[%clk 0:02:49]} 13. a5 {[%clk 0:02:56]}  Bd7 {[%clk 0:02:37]} 14. Nc4 {[%clk 0:02:56]}  Bb5 {[%clk 0:02:37]} 15. Bf4 {[%clk 0:02:49]}  Bxc4 {[%clk 0:02:36]} 16. Bxc4 {[%clk 0:02:50]}  b5 {[%clk 0:02:34]} 17. axb6 {[%clk 0:02:49]}  Rxb6 {[%clk 0:02:34]} 18. h3 {[%clk 0:02:44]}  Re8 {[%clk 0:02:31]} 19. Rfe1 {[%clk 0:02:40]}  Nh5 {[%clk 0:02:24]} 20. Be3 {[%clk 0:02:28]}  Nb5 {[%clk 0:02:18]} 21. Rxa6 {[%clk 0:01:56]}  Nd4 {[%clk 0:02:16]} 22. Qc1 {[%clk 0:01:21]}  Rxa6 {[%clk 0:02:07]} 23. Bxa6 {[%clk 0:01:22]}  Qb6 {[%clk 0:02:07]} 24. Be2 {[%clk 0:01:19]}  Nf6 {[%clk 0:02:04]} 25. f3 {[%clk 0:01:08]}  Rb8 {[%clk 0:01:59]} 26. Bxd4 {[%clk 0:01:02]}  cxd4 {[%clk 0:01:59]} 27. Nb5 {[%clk 0:01:03]}  d3+ {[%clk 0:01:58]} 28. Kh2 {[%clk 0:00:42]}  Qxb5 {[%clk 0:01:57]} 0-1

[Event "December 19 Early 2023"]
[Site "https://www.chess.com"]
[Date "2023.12.19"]
[Round "1"]
[White "Garagulya, Konstantin"]
[Black "Steinberg, Nitzan"]
[Result "0-1"]
[Board "48"]
[TimeControl "180+1"]
[WhiteFideId "4128931"]
[BlackFideId "2801795"]
[WhiteElo "2329"]
[BlackElo "2486"]
[WhiteTeam "RUS"]
[BlackTeam "ISR"]
[WhiteClock "0:00:03"]
[BlackClock "0:01:54"]

1. Nf3 {[%clk 0:02:54]}  d5 {[%clk 0:02:59]} 2. d4 {[%clk 0:02:52]}  Nf6 {[%clk 0:02:59]} 3. c4 {[%clk 0:02:49]}  c6 {[%clk 0:02:58]} 4. Qc2 {[%clk 0:02:48]}  dxc4 {[%clk 0:02:47]} 5. Qxc4 {[%clk 0:02:47]}  e6 {[%clk 0:02:48]} 6. Bg5 {[%clk 0:02:46]}  b5 {[%clk 0:02:46]} 7. Qc2 {[%clk 0:02:46]}  Bb7 {[%clk 0:02:43]} 8. Nbd2 {[%clk 0:02:46]}  Nbd7 {[%clk 0:02:38]} 9. e4 {[%clk 0:02:47]}  h6 {[%clk 0:02:37]} 10. Bh4 {[%clk 0:02:46]}  g5 {[%clk 0:02:32]} 11. Bg3 {[%clk 0:02:45]}  a6 {[%clk 0:02:32]} 12. a4 {[%clk 0:02:44]}  Rc8 {[%clk 0:02:29]} 13. Qb3 {[%clk 0:02:21]}  Qa5 {[%clk 0:02:17]} 14. h4 {[%clk 0:01:34]}  g4 {[%clk 0:02:07]} 15. Ne5 {[%clk 0:01:32]}  Nxe4 {[%clk 0:02:07]} 16. Qe3 {[%clk 0:00:54]}  Nxd2 {[%clk 0:02:04]} 17. axb5 {[%clk 0:00:03]}  Qxa1+ {[%clk 0:01:54]} 0-1

[Event "December 19 Early 2023"]
[Site "https://www.chess.com"]
[Date "2023.12.19"]
[Round "1"]
[White "Kovalev, Vladislav"]
[Black "Buksa, Nataliya"]
[Result "1-0"]
[Board "49"]
[TimeControl "180+1"]
[WhiteFideId "13504398"]
[BlackFideId "14123622"]
[WhiteElo "2539"]
[BlackElo "2316"]
[WhiteTeam "FID"]
[BlackTeam "UKR"]
[WhiteClock "0:00:15"]
[BlackClock "0:00:01"]

1. e4 {[%clk 0:02:58]}  c5 {[%clk 0:02:59]} 2. Nf3 {[%clk 0:02:59]}  Nc6 {[%clk 0:02:59]} 3. Nc3 {[%clk 0:02:57]}  e5 {[%clk 0:02:59]} 4. Bc4 {[%clk 0:02:57]}  Be7 {[%clk 0:02:59]} 5. d3 {[%clk 0:02:57]}  Nf6 {[%clk 0:02:59]} 6. Nd2 {[%clk 0:02:57]}  d6 {[%clk 0:02:57]} 7. Nf1 {[%clk 0:02:58]}  O-O {[%clk 0:02:54]} 8. Ne3 {[%clk 0:02:53]}  a6 {[%clk 0:02:54]} 9. a3 {[%clk 0:02:53]}  b5 {[%clk 0:02:49]} 10. Ba2 {[%clk 0:02:53]}  Be6 {[%clk 0:02:50]} 11. O-O {[%clk 0:02:45]}  Nd4 {[%clk 0:02:42]} 12. Ncd5 {[%clk 0:02:42]}  Nxd5 {[%clk 0:02:39]} 13. Nxd5 {[%clk 0:02:43]}  Ra7 {[%clk 0:02:30]} 14. c3 {[%clk 0:02:43]}  Nc6 {[%clk 0:02:29]} 15. f4 {[%clk 0:02:36]}  exf4 {[%clk 0:02:28]} 16. Bxf4 {[%clk 0:02:37]}  Bg5 {[%clk 0:02:27]} 17. Bg3 {[%clk 0:02:20]}  Ne7 {[%clk 0:02:27]} 18. Nxe7+ {[%clk 0:01:49]}  Rxe7 {[%clk 0:02:15]} 19. Qh5 {[%clk 0:01:37]}  Be3+ {[%clk 0:02:01]} 20. Kh1 {[%clk 0:01:37]}  Bxa2 {[%clk 0:02:02]} 21. Rxa2 {[%clk 0:01:37]}  Re6 {[%clk 0:01:57]} 22. Qe2 {[%clk 0:01:26]}  Bg5 {[%clk 0:01:56]} 23. Rf5 {[%clk 0:01:24]}  Bf6 {[%clk 0:01:45]} 24. Ra1 {[%clk 0:01:19]}  Be5 {[%clk 0:01:46]} 25. Qg4 {[%clk 0:01:11]}  Rg6 {[%clk 0:01:43]} 26. Qf3 {[%clk 0:01:07]}  Bxg3 {[%clk 0:01:40]} 27. hxg3 {[%clk 0:01:08]}  Qe7 {[%clk 0:01:22]} 28. Rf1 {[%clk 0:01:07]}  Re6 {[%clk 0:01:22]} 29. b4 {[%clk 0:01:03]}  c4 {[%clk 0:01:14]} 30. dxc4 {[%clk 0:00:58]}  bxc4 {[%clk 0:01:14]} 31. Rf4 {[%clk 0:00:58]}  Rh6+ {[%clk 0:01:06]} 32. Kg1 {[%clk 0:00:57]}  Qa7+ {[%clk 0:01:07]} 33. Qf2 {[%clk 0:00:57]}  Qxf2+ {[%clk 0:01:01]} 34. Kxf2 {[%clk 0:00:58]}  Re6 {[%clk 0:01:00]} 35. Rd1 {[%clk 0:00:57]}  a5 {[%clk 0:00:54]} 36. b5 {[%clk 0:00:56]}  g6 {[%clk 0:00:47]} 37. a4 {[%clk 0:00:55]}  Rc8 {[%clk 0:00:43]} 38. Rd5 {[%clk 0:00:53]}  Kf8 {[%clk 0:00:41]} 39. g4 {[%clk 0:00:53]}  h6 {[%clk 0:00:40]} 40. Ke3 {[%clk 0:00:52]}  Ke7 {[%clk 0:00:40]} 41. Kd4 {[%clk 0:00:50]}  Rb8 {[%clk 0:00:18]} 42. Rf1 {[%clk 0:00:43]}  Rb6 {[%clk 0:00:16]} 43. Rh1 {[%clk 0:00:43]}  g5 {[%clk 0:00:16]} 44. Rf1 {[%clk 0:00:43]}  Rb8 {[%clk 0:00:15]} 45. Rdf5 {[%clk 0:00:43]}  f6 {[%clk 0:00:15]} 46. Rh1 {[%clk 0:00:41]}  Kf7 {[%clk 0:00:12]} 47. Rxh6 {[%clk 0:00:40]}  Rbe8 {[%clk 0:00:12]} 48. Kxc4 {[%clk 0:00:17]}  Rxe4+ {[%clk 0:00:12]} 49. Kb3 {[%clk 0:00:16]}  Rxg4 {[%clk 0:00:09]} 50. Rhxf6+ {[%clk 0:00:16]}  Ke7 {[%clk 0:00:09]} 51. Rg6 {[%clk 0:00:10]}  Rxg2 {[%clk 0:00:06]} 52. Rgxg5 {[%clk 0:00:10]}  Rxg5 {[%clk 0:00:05]} 53. Rxg5 {[%clk 0:00:11]}  Kd7 {[%clk 0:00:05]} 54. Rg7+ {[%clk 0:00:12]}  Kc8 {[%clk 0:00:05]} 55. Ra7 {[%clk 0:00:12]}  Re1 {[%clk 0:00:04]} 56. Rxa5 {[%clk 0:00:12]}  Kb7 {[%clk 0:00:05]} 57. Ra6 {[%clk 0:00:12]}  Rd1 {[%clk 0:00:05]} 58. Kc4 {[%clk 0:00:12]}  Rd2 {[%clk 0:00:04]} 59. Rc6 {[%clk 0:00:12]}  Rd1 {[%clk 0:00:04]} 60. a5 {[%clk 0:00:13]}  Rd2 {[%clk 0:00:03]} 61. a6+ {[%clk 0:00:13]}  Kb8 {[%clk 0:00:03]} 62. b6 {[%clk 0:00:13]}  Rd1 {[%clk 0:00:03]} 63. b7 {[%clk 0:00:14]}  Ra1 {[%clk 0:00:02]} 64. Rc8+ {[%clk 0:00:14]}  Ka7 {[%clk 0:00:01]} 65. b8=Q+ {[%clk 0:00:15]} 1-0

[Event "December 19 Early 2023"]
[Site "https://www.chess.com"]
[Date "2023.12.19"]
[Round "1"]
[White "Azali, Tannaz"]
[Black "Zakhartsov, Vladimir"]
[Result "0-1"]
[Board "50"]
[TimeControl "180+1"]
[WhiteFideId "12537721"]
[BlackFideId "4145097"]
[WhiteElo "1828"]
[BlackElo "2448"]
[WhiteTeam "IRI"]
[BlackTeam "RUS"]
[WhiteClock "0:00:06"]
[BlackClock "0:00:20"]

1. e4 {[%clk 0:03:00]}  c5 {[%clk 0:02:58]} 2. Nc3 {[%clk 0:03:00]}  Nc6 {[%clk 0:02:53]} 3. Bb5 {[%clk 0:03:00]}  Nd4 {[%clk 0:02:51]} 4. Nf3 {[%clk 0:03:00]}  Nxb5 {[%clk 0:02:43]} 5. Nxb5 {[%clk 0:02:59]}  a6 {[%clk 0:02:43]} 6. Nc3 {[%clk 0:02:52]}  d6 {[%clk 0:02:44]} 7. d4 {[%clk 0:02:52]}  cxd4 {[%clk 0:02:44]} 8. Qxd4 {[%clk 0:02:52]}  h6 {[%clk 0:02:44]} 9. O-O {[%clk 0:02:47]}  e5 {[%clk 0:02:43]} 10. Qb4 {[%clk 0:02:24]}  Nf6 {[%clk 0:02:42]} 11. Be3 {[%clk 0:02:18]}  Be7 {[%clk 0:02:38]} 12. Bb6 {[%clk 0:02:14]}  Qd7 {[%clk 0:02:38]} 13. Rad1 {[%clk 0:02:07]}  Qc6 {[%clk 0:02:34]} 14. Rfe1 {[%clk 0:01:48]}  Be6 {[%clk 0:02:31]} 15. Qa5 {[%clk 0:01:14]}  O-O {[%clk 0:02:27]} 16. Rd2 {[%clk 0:01:11]}  Rfc8 {[%clk 0:01:45]} 17. h3 {[%clk 0:01:11]}  Qe8 {[%clk 0:01:38]} 18. Red1 {[%clk 0:01:05]}  Rc4 {[%clk 0:01:36]} 19. b3 {[%clk 0:00:58]}  Rc6 {[%clk 0:01:36]} 20. Nd5 {[%clk 0:00:51]}  Nxe4 {[%clk 0:01:34]} 21. Nc7 {[%clk 0:00:19]}  Rxc7 {[%clk 0:01:33]} 22. Bxc7 {[%clk 0:00:20]}  Nxd2 {[%clk 0:01:34]} 23. Rxd2 {[%clk 0:00:20]}  Qc6 {[%clk 0:01:32]} 24. c4 {[%clk 0:00:18]}  Rc8 {[%clk 0:01:22]} 25. Bb6 {[%clk 0:00:18]}  Bxh3 {[%clk 0:01:22]} 26. Nxe5 {[%clk 0:00:17]}  dxe5 {[%clk 0:01:23]} 27. gxh3 {[%clk 0:00:17]}  Qg6+ {[%clk 0:01:05]} 28. Kf1 {[%clk 0:00:17]}  Qf5 {[%clk 0:00:56]} 29. Qd5 {[%clk 0:00:14]}  Qxh3+ {[%clk 0:00:52]} 30. Ke1 {[%clk 0:00:15]}  Rc6 {[%clk 0:00:48]} 31. Rd3 {[%clk 0:00:14]}  Qf5 {[%clk 0:00:38]} 32. c5 {[%clk 0:00:10]}  Rg6 {[%clk 0:00:35]} 33. Rf3 {[%clk 0:00:09]}  Qb1+ {[%clk 0:00:29]} 34. Ke2 {[%clk 0:00:10]}  Qxa2+ {[%clk 0:00:23]} 35. Kd3 {[%clk 0:00:10]}  Qb1+ {[%clk 0:00:23]} 36. Kc3 {[%clk 0:00:10]}  Qc1+ {[%clk 0:00:21]} 37. Kd3 {[%clk 0:00:10]}  Qd1+ {[%clk 0:00:20]} 38. Kc4 {[%clk 0:00:06]}  Rg4+ {[%clk 0:00:20]} 0-1

[Event "December 19 Early 2023"]
[Site "https://www.chess.com"]
[Date "2023.12.19"]
[Round "1"]
[White "Ljukin, Sergei"]
[Black "Kamsky, Gata"]
[Result "0-1"]
[Board "52"]
[TimeControl "180+1"]
[WhiteFideId "14102200"]
[BlackFideId "2000024"]
[WhiteElo "2319"]
[BlackElo "2660"]
[WhiteTeam "UKR"]
[BlackTeam "USA"]
[WhiteClock "0:00:33"]
[BlackClock "0:01:09"]

1. e4 {[%clk 0:02:58]}  c5 {[%clk 0:02:58]} 2. Nf3 {[%clk 0:02:58]}  Nc6 {[%clk 0:02:52]} 3. d4 {[%clk 0:02:58]}  cxd4 {[%clk 0:02:52]} 4. Nxd4 {[%clk 0:02:58]}  Qb6 {[%clk 0:02:52]} 5. c3 {[%clk 0:02:53]}  Nf6 {[%clk 0:02:47]} 6. Bd3 {[%clk 0:02:52]}  g6 {[%clk 0:02:30]} 7. O-O {[%clk 0:02:44]}  Bg7 {[%clk 0:02:30]} 8. Na3 {[%clk 0:02:21]}  O-O {[%clk 0:02:25]} 9. Be3 {[%clk 0:01:35]}  Qc7 {[%clk 0:02:20]} 10. Rc1 {[%clk 0:01:22]}  d5 {[%clk 0:02:12]} 11. exd5 {[%clk 0:01:16]}  Nxd5 {[%clk 0:02:10]} 12. Bg5 {[%clk 0:01:12]}  Nxd4 {[%clk 0:01:56]} 13. cxd4 {[%clk 0:01:12]}  Qd8 {[%clk 0:01:52]} 14. Re1 {[%clk 0:00:57]}  b6 {[%clk 0:01:42]} 15. Be4 {[%clk 0:00:54]}  Rb8 {[%clk 0:01:29]} 16. Nb5 {[%clk 0:00:40]}  a6 {[%clk 0:01:12]} 17. Bxd5 {[%clk 0:00:38]}  Qxd5 {[%clk 0:01:10]} 18. Nc7 {[%clk 0:00:33]}  Qxg5 {[%clk 0:01:09]} 0-1

[Event "December 19 Early 2023"]
[Site "https://www.chess.com"]
[Date "2023.12.19"]
[Round "1"]
[White "Jumabayev, Rinat"]
[Black "Czerw, Dawid"]
[Result "1-0"]
[Board "53"]
[TimeControl "180+1"]
[WhiteFideId "13702661"]
[BlackFideId "1145746"]
[WhiteElo "2561"]
[BlackElo "2144"]
[WhiteTeam "KAZ"]
[BlackTeam "POL"]
[WhiteClock "0:00:08"]
[BlackClock "0:00:00"]

1. d4 {[%clk 0:02:59]}  d5 {[%clk 0:02:58]} 2. c4 {[%clk 0:03:00]}  c6 {[%clk 0:02:55]} 3. Nf3 {[%clk 0:03:00]}  Nf6 {[%clk 0:02:55]} 4. g3 {[%clk 0:03:00]}  Bf5 {[%clk 0:02:48]} 5. Nc3 {[%clk 0:02:57]}  e6 {[%clk 0:02:46]} 6. Nh4 {[%clk 0:02:58]}  Bg4 {[%clk 0:02:45]} 7. Qb3 {[%clk 0:02:51]}  Qb6 {[%clk 0:02:40]} 8. c5 {[%clk 0:02:44]}  Qc7 {[%clk 0:02:18]} 9. Bf4 {[%clk 0:02:43]}  Qc8 {[%clk 0:02:17]} 10. f3 {[%clk 0:02:24]}  Bh5 {[%clk 0:02:14]} 11. e4 {[%clk 0:02:24]}  Be7 {[%clk 0:02:09]} 12. Bh3 {[%clk 0:01:53]}  Nfd7 {[%clk 0:01:50]} 13. Bd6 {[%clk 0:01:24]}  g5 {[%clk 0:01:31]} 14. g4 {[%clk 0:01:23]}  Bg6 {[%clk 0:01:25]} 15. Nxg6 {[%clk 0:01:21]}  hxg6 {[%clk 0:01:26]} 16. Bg2 {[%clk 0:01:21]}  Bxd6 {[%clk 0:00:42]} 17. cxd6 {[%clk 0:01:20]}  Nb6 {[%clk 0:00:39]} 18. O-O-O {[%clk 0:01:06]}  N8d7 {[%clk 0:00:35]} 19. Kb1 {[%clk 0:00:58]}  a5 {[%clk 0:00:32]} 20. a3 {[%clk 0:00:37]}  Nc4 {[%clk 0:00:25]} 21. e5 {[%clk 0:00:28]}  b5 {[%clk 0:00:21]} 22. Bf1 {[%clk 0:00:20]}  a4 {[%clk 0:00:16]} 23. Qb4 {[%clk 0:00:18]}  Nb8 {[%clk 0:00:12]} 24. Bxc4 {[%clk 0:00:16]}  bxc4 {[%clk 0:00:06]} 25. Nxa4 {[%clk 0:00:15]}  Nd7 {[%clk 0:00:03]} 26. Nc5 {[%clk 0:00:13]}  Rb8 {[%clk 0:00:03]} 27. Qc3 {[%clk 0:00:12]}  Nxc5 {[%clk 0:00:03]} 28. dxc5 {[%clk 0:00:12]}  Rb3 {[%clk 0:00:03]} 29. Qc1 {[%clk 0:00:13]}  O-O {[%clk 0:00:02]} 30. h4 {[%clk 0:00:11]}  Qb7 {[%clk 0:00:02]} 31. Rh2 {[%clk 0:00:08]}  Rb8 {[%clk 0:00:02]} 32. Ka2 {[%clk 0:00:08]}  c3 {[%clk 0:00:02]} 33. bxc3 {[%clk 0:00:08]}  Rb1 {[%clk 0:00:00]} 34. Qxb1 {[%clk 0:00:08]} 1-0

[Event "December 19 Early 2023"]
[Site "https://www.chess.com"]
[Date "2023.12.19"]
[Round "1"]
[White "Shishkov, Andrei"]
[Black "Margvelashvili, Giorgi"]
[Result "1-0"]
[Board "56"]
[TimeControl "180+1"]
[WhiteFideId "4500563"]
[BlackFideId "13602926"]
[WhiteElo "2241"]
[BlackElo "2549"]
[WhiteTeam "EST"]
[BlackTeam "GEO"]
[WhiteClock "0:00:12"]
[BlackClock "0:00:00"]

1. d4 {[%clk 0:03:00]}  Nf6 {[%clk 0:02:59]} 2. c4 {[%clk 0:03:00]}  e6 {[%clk 0:03:00]} 3. Nc3 {[%clk 0:03:00]}  Bb4 {[%clk 0:03:00]} 4. Qc2 {[%clk 0:03:00]}  c5 {[%clk 0:03:00]} 5. dxc5 {[%clk 0:03:00]}  O-O {[%clk 0:03:00]} 6. a3 {[%clk 0:03:00]}  Bxc5 {[%clk 0:03:00]} 7. Nf3 {[%clk 0:03:00]}  b6 {[%clk 0:03:00]} 8. Bg5 {[%clk 0:03:00]}  Bb7 {[%clk 0:02:59]} 9. Rd1 {[%clk 0:03:00]}  Be7 {[%clk 0:02:56]} 10. e4 {[%clk 0:03:00]}  h6 {[%clk 0:02:56]} 11. Bh4 {[%clk 0:03:00]}  Nh5 {[%clk 0:02:54]} 12. Bxe7 {[%clk 0:02:59]}  Qxe7 {[%clk 0:02:55]} 13. Be2 {[%clk 0:02:59]}  Nf4 {[%clk 0:02:52]} 14. O-O {[%clk 0:02:59]}  Nc6 {[%clk 0:02:38]} 15. Rfe1 {[%clk 0:02:52]}  Nxe2+ {[%clk 0:02:28]} 16. Qxe2 {[%clk 0:02:52]}  Rac8 {[%clk 0:02:15]} 17. Nb5 {[%clk 0:02:47]}  Ba8 {[%clk 0:01:45]} 18. Nd6 {[%clk 0:02:40]}  Rc7 {[%clk 0:01:44]} 19. b4 {[%clk 0:02:38]}  a6 {[%clk 0:01:27]} 20. Qd3 {[%clk 0:02:15]}  Rb8 {[%clk 0:01:25]} 21. e5 {[%clk 0:01:44]}  Nd8 {[%clk 0:01:21]} 22. h3 {[%clk 0:01:34]}  f5 {[%clk 0:01:12]} 23. exf6 {[%clk 0:01:26]}  Qxf6 {[%clk 0:01:12]} 24. Ne5 {[%clk 0:01:01]}  Nc6 {[%clk 0:01:12]} 25. Nxc6 {[%clk 0:00:51]}  Bxc6 {[%clk 0:01:13]} 26. Re3 {[%clk 0:00:46]}  Rf8 {[%clk 0:01:09]} 27. f3 {[%clk 0:00:43]}  Ba8 {[%clk 0:01:06]} 28. Qd4 {[%clk 0:00:37]}  Qg6 {[%clk 0:00:44]} 29. Kh2 {[%clk 0:00:29]}  Rc6 {[%clk 0:00:37]} 30. Ne4 {[%clk 0:00:22]}  Rf7 {[%clk 0:00:35]} 31. Red3 {[%clk 0:00:19]}  b5 {[%clk 0:00:30]} 32. c5 {[%clk 0:00:19]}  Rc7 {[%clk 0:00:27]} 33. Nd6 {[%clk 0:00:17]}  Rf8 {[%clk 0:00:28]} 34. Ne4 {[%clk 0:00:17]}  Bc6 {[%clk 0:00:25]} 35. Qe5 {[%clk 0:00:17]}  Rcc8 {[%clk 0:00:24]} 36. Rxd7 {[%clk 0:00:14]}  Bxd7 {[%clk 0:00:20]} 37. Rxd7 {[%clk 0:00:15]}  Kh7 {[%clk 0:00:17]} 38. Nd6 {[%clk 0:00:12]}  Rc6 {[%clk 0:00:13]} 39. Re7 {[%clk 0:00:13]}  Rf6 {[%clk 0:00:11]} 40. Ne4 {[%clk 0:00:13]}  Rf5 {[%clk 0:00:10]} 41. Qb8 {[%clk 0:00:11]}  h5 {[%clk 0:00:03]} 42. Re8 {[%clk 0:00:11]}  Kh6 {[%clk 0:00:01]} 43. Rh8+ {[%clk 0:00:11]}  Qh7 {[%clk 0:00:01]} 44. Rxh7+ {[%clk 0:00:12]}  Kxh7 {[%clk 0:00:02]} 45. Qe8 {[%clk 0:00:12]}  h4 {[%clk 0:00:00]} 46. Qxc6 {[%clk 0:00:12]} 1-0

[Event "December 19 Early 2023"]
[Site "https://www.chess.com"]
[Date "2023.12.19"]
[Round "1"]
[White "Ashraf, Artin"]
[Black "Bon, Michael"]
[Result "1-0"]
[Board "57"]
[TimeControl "180+1"]
[WhiteFideId "22514805"]
[BlackFideId "620696"]
[WhiteElo "2268"]
[BlackElo "2468"]
[WhiteTeam "IRI"]
[BlackTeam "FRA"]
[WhiteClock "0:00:09"]
[BlackClock "0:00:00"]

1. e4 {[%clk 0:02:59]}  e6 {[%clk 0:03:00]} 2. d3 {[%clk 0:02:49]}  d5 {[%clk 0:03:00]} 3. Nd2 {[%clk 0:02:50]}  Nf6 {[%clk 0:02:59]} 4. g3 {[%clk 0:02:50]}  Nc6 {[%clk 0:02:59]} 5. Bg2 {[%clk 0:02:50]}  dxe4 {[%clk 0:03:00]} 6. Nxe4 {[%clk 0:02:50]}  Be7 {[%clk 0:02:54]} 7. Ne2 {[%clk 0:02:48]}  O-O {[%clk 0:02:50]} 8. O-O {[%clk 0:02:47]}  Nxe4 {[%clk 0:02:39]} 9. Bxe4 {[%clk 0:02:46]}  Qd6 {[%clk 0:02:36]} 10. Nc3 {[%clk 0:02:43]}  b6 {[%clk 0:02:29]} 11. Bf4 {[%clk 0:01:51]}  Qd7 {[%clk 0:02:22]} 12. d4 {[%clk 0:01:52]}  Bb7 {[%clk 0:02:19]} 13. d5 {[%clk 0:01:50]}  exd5 {[%clk 0:02:15]} 14. Nxd5 {[%clk 0:01:51]}  Bd6 {[%clk 0:02:04]} 15. Nf6+ {[%clk 0:01:04]}  gxf6 {[%clk 0:01:51]} 16. Qh5 {[%clk 0:01:04]}  Rfe8 {[%clk 0:01:21]} 17. Qxh7+ {[%clk 0:01:03]}  Kf8 {[%clk 0:01:21]} 18. Bf5 {[%clk 0:00:59]}  Re6 {[%clk 0:00:59]} 19. Bg6 {[%clk 0:00:35]}  Ne5 {[%clk 0:00:44]} 20. Bxe5 {[%clk 0:00:35]}  Rxe5 {[%clk 0:00:31]} 21. Rae1 {[%clk 0:00:26]}  Rae8 {[%clk 0:00:21]} 22. Rd1 {[%clk 0:00:24]}  Qe6 {[%clk 0:00:16]} 23. Bh5 {[%clk 0:00:20]}  Ke7 {[%clk 0:00:14]} 24. Rd4 {[%clk 0:00:20]}  Re4 {[%clk 0:00:12]} 25. Bxf7 {[%clk 0:00:17]}  Qxf7 {[%clk 0:00:04]} 26. Rxe4+ {[%clk 0:00:17]}  Be5 {[%clk 0:00:05]} 27. Qf5 {[%clk 0:00:10]}  Bxe4 {[%clk 0:00:04]} 28. Qxe4 {[%clk 0:00:11]}  Qe6 {[%clk 0:00:04]} 29. Re1 {[%clk 0:00:09]}  Kf7 {[%clk 0:00:03]} 30. Qh7+ {[%clk 0:00:09]}  Kf8 {[%clk 0:00:03]} 31. Re4 {[%clk 0:00:09]}  Qf7 {[%clk 0:00:00]} 32. Qf5 {[%clk 0:00:09]} 1-0